Cogmind - Beta 16.1 @@@ ROGUE MODE // 2026.02.22 @ 23:38:48 Player: FAYE Result: Destroyed by G-47 Trooper with Particle Gun Performance ------------- Evolutions (2) 1000 Regions Visited (3) 600 Robots Destroyed (32) 160 Value Destroyed (813) 813 Prototype IDs (2) 40 Alien Tech Used (0) 0 Bonus (0) 0 TOTAL SCORE: 2613 Bonus ------- None Cogmind --------- Core Integrity 0/550 Matter 9/300 Energy 275/280 System Corruption 0% Temperature Cool (18) Movement Core (200) Ox3 Location -8/Materials Parts ------- > --- POWER (1) -------- Cooled Ion Engine > --- PROPULSION (4) --- (None) > --- UTILITY (4) ------ Advanced Weight Redist. System Visual Processing Unit Hacking Suite > --- WEAPON (2) ------- Flail > --- INVENTORY (5) ---- Improved Targeting Computer Hacking Suite Heavy EM Shotgun Improved Grenade Launcher Flail Peak State ------------ > --- POWER ------------ Improved Ion Engine > --- PROPULSION ------- Advanced Treads Advanced Treads Aluminum Leg Aluminum Leg > --- UTILITY ---------- Small Storage Unit Advanced Weight Redist. System Visual Processing Unit Hacking Suite > --- WEAPON ----------- Autogun Autogun > --- INVENTORY -------- Cooled Ion Engine Heavy Assault Rifle Mini Grenade Launcher Improved Grenade Launcher [Rating: 24] Favorites ----------- Power Ion Engine Engine Ion Engine Propulsion Aluminum Leg Treads Advanced Treads Leg Aluminum Leg Hover Unit Hover Unit Utility Small Storage Unit Device Heat Sink Storage Small Storage Unit Processor Visual Processing Unit Hackware Hacking Suite Protection Core Shielding Weapon Assault Rifle Energy Cannon Advanced Beam Cannon Ballistic Gun Assault Rifle Ballistic Cannon Light Cannon Launcher Improved Grenade Launcher Impact Weapon Great Maul Special Melee Weapon Improved Datajack Build | -11 -10 -9 -8 ------- Run | Yrd Mat Mat Mat Slots Evolved 4 | . . 2 2 Power . | . . . . Propulsion 2 | . . . 2 Utility 2 | . . 2 . Weapon . | . . . . Parts Attached 41 | 7 3 26 5 Power 7 | 2 1 3 1 Engine 7 | 2 1 3 1 Core . | . . . . Reactor . | . . . . Propulsion 12 | 2 . 8 2 Treads 2 | . . . 2 Leg 9 | 2 . 7 . Wheel . | . . . . Hover 1 | . . 1 . Flight . | . . . . Utility 9 | 1 . 7 1 Device 3 | . . 2 1 Storage 1 | 1 . . . Processor 1 | . . 1 . Hackware 2 | . . 2 . Protection 2 | . . 2 . Artifact . | . . . . Weapon 13 | 2 2 8 1 Energy Gun . | . . . . Energy Cannon 1 | . . 1 . Ballistic Gun 7 | 2 1 4 . Ballistic Cannon 1 | . 1 . . Launcher 1 | . . 1 . Special Weapon . | . . . . Impact Weapon 2 | . . 1 1 Slashing Weapon . | . . . . Piercing Weapon . | . . . . Special Melee Weapon 1 | . . 1 . Unidentified Prototypes 1 | . . . 1 Parts Lost 15 | . 1 6 8 Power 3 | . 1 1 1 Propulsion 5 | . . 1 4 Utility 4 | . . 3 1 Weapon 3 | . . 1 2 Highest Loss Streak 8 | . 1 4 8 To Critical Strikes . | . . . . Average Backups 5 | . 2 7 5 Power . | . . . . Propulsion 1 | . . 2 . Utility . | . . . 1 Weapon 3 | . 2 3 3 Tool/Special . | . . . . Unused Backups 5 | . . . 5 Power . | . . . . Propulsion . | . . . . Utility 2 | . . . 2 Weapon 3 | . . . 3 Tool/Special . | . . . . Average Slot Usage (%) 83 | . 83 85 76 Engine 10 | . 12 11 7 Treads 1 | . . . 10 Leg 19 | . 28 18 11 Hover 2 | . . 3 . Device 6 | . . 7 8 Storage 11 | . 14 11 6 Processor 4 | . . 4 9 Hackware 3 | . . 3 9 Protection 2 | . . 3 . Energy Cannon 3 | . . 4 . Ballistic Gun 11 | . 21 9 10 Ballistic Cannon 2 | . 6 2 . Impact Weapon 2 | . . 3 3 Special Melee Weapon 1 | . . 2 . Peak Build Rating 24 | 6 6 18 24 Average Rating 11 | 3 5 12 19 On Entrance 6 | . 6 6 15 Avg Prop Armor Cover (%) 12 | . . 9 16 Naked Turns . | . . . . Heaviest Build 22 | 14 14 22 18 Greatest Support 29 | 20 20 26 29 Greatest Overweight (x) 3 | . . 2 3 Average Overweight (x) . | . . . . Largest Inventory Capacity 8 | 8 8 8 8 Average Capacity 7 | 7 8 8 7 Most Carried 8 | 4 6 8 8 Average Carried 6 | . 2 7 5 Final Capacity 8 | 8 8 8 5 Final Carried 6 | . 6 6 5 Class Distribution -------------------- 79% | Mutant 14% | Scavenger-Mutant 5% | Hacker-Mutant Dominant Class ---------------- Mutant | -10/Materials Mutant | -9/Materials Mutant | -8/Materials Resources | -11 -10 -9 -8 ----------- Run | Yrd Mat Mat Mat Matter Collected 622 | 152 69 401 . Remotely . | . . . . Salvage Created 959 | . 259 593 107 Parts 57 | . 19 36 2 Haulers Intercepted . | . . . . Recyclers Shooed . | . . . . Parts Field Recycled . | . . . . Retrieved Matter . | . . . . Parts Self-Destructed . | . . . . Prevented . | . . . . Parts Restored . | . . . . Kills | -11 -10 -9 -8 ------- Run | Yrd Mat Mat Mat Combat Hostiles Destroyed 25 | . 8 15 2 Melee 2 | . . . 2 Guns 9 | . 5 4 . Cannons 8 | . 2 6 . AOE 6 | . 1 5 . Classes Destroyed 8 | . 4 3 1 Builder 1 | . 1 . . Recycler 3 | . 1 2 . Operator 1 | . . . 1 Watcher 2 | . . 2 . Swarmer 9 | . 5 4 . Grunt 12 | . 3 7 2 Duelist 1 | . . 1 . Sentry 3 | . . 3 . Best Kill Streak 8 | . 8 3 2 Combat Bots Only 6 | . 6 3 2 Max Kills in Single Turn 3 | . 3 3 1 Gunslinging 1 | . 1 . . Exploded 3 | . 1 3 . Melee 1 | . . . 1 Uniques/NPCs Destroyed . | . . . . Combat | -11 -10 -9 -8 -------- Run | Yrd Mat Mat Mat Hostile Shots Fired 267 | . 40 105 122 Missed 66 | . 11 25 30 Hits 201 | . 29 80 92 Melee 3 | . . 3 . Projectile 198 | . 29 77 92 AOE 2 | . . 2 . Critical Strikes 11 | . . 5 6 Damage Taken 2964 | . 309 1146 1509 Core 838 | . 29 253 556 Absorbed by Shields . | . . . . Redirected to Shielding 17 | . . 17 . Regen/Repaired (Parts) 50 | . . 50 . Core Remaining (%) 74 | 100 88 36 . Volleys Fired 85 | . 16 65 4 Largest 2 | . 2 2 2 Hottest 68 | . 50 68 46 Shots Fired 124 | . 32 85 7 Gun 87 | . 29 51 7 Cannon 34 | . 3 31 . Launcher 3 | . . 3 . Special . | . . . . Kinetic 99 | . 32 60 7 Thermal 22 | . . 22 . Explosive 3 | . . 3 . Electromagnetic . | . . . . Robot Hit Streak 12 | . 12 7 6 Robot Miss Streak 3 | . 2 3 2 Penetration Max . | . . . . Secondary Targets 1 | . 1 . . Max Gunslinging Chain 1 | . 1 . . Shots Hit Robots 94 | . 22 59 13 Core Hits 42 | . 13 24 5 Critical Kills 1 | . . . 1 Critical Parts Destroyed . | . . . . Critical Strikes 1 | . . . 1 Smash 1 | . . . 1 Melee Attacks 13 | . . 1 12 Impact 13 | . . 1 12 Slashing . | . . . . Piercing . | . . . . Sneak Attacks 2 | . . 1 1 Combat Hostiles . | . . . . Follow-up Attacks . | . . . . Damage Inflicted 2593 | . 553 1638 402 Guns 705 | . 223 412 70 Cannons 506 | . 50 456 . Explosions 917 | . 280 637 . Melee 457 | . . 125 332 Ramming 8 | . . 8 . Kinetic 864 | . 273 521 70 Thermal 347 | . . 347 . Explosive 917 | . 280 637 . Electromagnetic . | . . . . Impact 457 | . . 125 332 Slashing . | . . . . Piercing . | . . . . Highest Corruption . | . . . . Average Corruption . | . . . . Corruption Purged . | . . . . Corruption Blocked . | . . . . Overload Shots . | . . . . Overflow Damage 69 | . 28 14 27 Projectiles . | . . . . Explosions 42 | . 28 14 . Melee 27 | . . . 27 Knockbacks 2 | . 1 . 1 Impact 1 | . . . 1 Kinetic 1 | . 1 . . Secondary . | . . . . Self-Inflicted Damage 64 | . 64 . . Shots 1 | . 1 . . Rammed . | . . . . Targets Rammed 1 | . . 1 . Kicked 1 | . . 1 . Crushed . | . . . . Highest Temperature 64 | . 16 64 20 Average Temperature 12 | . 10 13 7 Received Heat Transfer 1407 | . 36 435 936 Siege Activations . | . . . . Martial Activations . | . . . . Shielding Activations . | . . . . Robots Disrupted . | . . . . Combat Hostiles . | . . . . Robots Corrupted 1 | . . . 1 Combat Hostiles . | . . . . Parts Fried 2 | . . . 2 Impact Corruptions 3 | . . . 3 Robots Melted . | . . . . Combat Hostiles . | . . . . Parts Melted 1 | . . 1 . Heat Transferred 629 | . . 629 . Parts Sabotaged . | . . . . Parts Stolen . | . . . . Parts Stripped . | . . . . Power Chain Reactions . | . . . . Alert | -11 -10 -9 -8 ------- Run | Yrd Mat Mat Mat Maximum Alert Level . | . . . . Low Security (%) 100 | 100 100 100 100 Level 1 . | . . . . Level 2 . | . . . . Level 3 . | . . . . Level 4 . | . . . . Level 5 . | . . . . High Security . | . . . . Max Security . | . . . . Peak Influence 184 | . 184 180 59 Initial 59 | . . 56 59 Average 53 | . 88 53 22 Influence Increases 767 | . 234 478 55 Destroy 0b10 Robot/C 500 | . 160 300 40 Destroy 0b10 Robot/NC 35 | . 10 20 5 Destroy Leader 94 | . 20 64 10 Successful Hack 10 | . . 10 . Disable Machine 30 | . 30 . . Destroy Structure 38 | . 14 24 . Lose Combat Pursuer 60 | . . 60 . Influence Decreases 717 | . 100 469 148 Entered New Map 162 | . . 78 84 Time Decay 476 | . 90 331 55 Lost Part 79 | . 10 60 9 Squads Dispatched 2 | . 1 . 1 Investigation . | . . . . Extermination . | . . . . Reinforcement 2 | . 1 . 1 Assault . | . . . . Garrison . | . . . . Intercept . | . . . . Searches Triggered . | . . . . Construction Impeded . | . . . . Haulers Reinforced . | . . . . Active Scanning Responses . | . . . . Cargo Convoy Interrupts . | . . . . Stealth | -11 -10 -9 -8 --------- Run | Yrd Mat Mat Mat Distress Signals 3 | . . 3 . Communications Jammed . | . . . . Distress Signals . | . . . . Times Spotted 45 | . 12 25 8 Peak Tracking Total 7 | . 4 5 7 Tactical Retreats 3 | . . 3 . Traps | -11 -10 -9 -8 ------- Run | Yrd Mat Mat Mat Traps Triggered . | . . . . Indirectly . | . . . . Trap Hack Attempts . | . . . . Triggered . | . . . . Disarmed . | . . . . Reprogrammed . | . . . . Reused . | . . . . Traps Extracted . | . . . . Installed . | . . . . Triggered . | . . . . Machines | -11 -10 -9 -8 ---------- Run | Yrd Mat Mat Mat Machines Disabled 2 | . 2 . . Max in Single Turn 2 | . 2 . . Machines Repaired . | . . . . Machines Dismantled . | . . . . Machines Sabotaged . | . . . . Overloaded Fab Kills . | . . . . Hacking | -11 -10 -9 -8 --------- Run | Yrd Mat Mat Mat Machines Accessed 5 | . . 3 2 Terminals 3 | . . 1 2 Fabricators . | . . . . Repair Stations 1 | . . 1 . Recycling Units . | . . . . Scanalyzers 1 | . . 1 . Garrison Access . | . . . . Total Hacks 16 | . . 11 5 Successful 12 | . . 10 2 Failed 4 | . . 1 3 Catastrophic 2 | . . . 2 Database Lockouts . | . . . . Manual . | . . . . Terminals 8 | . . 3 5 Fabricators . | . . . . Repair Stations 5 | . . 5 . Recycling Units . | . . . . Scanalyzers 3 | . . 3 . Garrison Access . | . . . . Terminal Hacks 5 | . . 3 2 Record 4 | . . 3 1 Recall Reinforcements 1 | . . . 1 Fabricator Hacks . | . . . . Repair Station Hacks 4 | . . 4 . Scan Component 2 | . . 2 . Repair 2 | . . 2 . Recycling Unit Hacks . | . . . . Scanalyzer 3 | . . 3 . Insert Component 1 | . . 1 . Analyze 1 | . . 1 . Retrieve Study 1 | . . 1 . Garrison Access Hacks . | . . . . Unauthorized Hacks . | . . . . Terminals . | . . . . Fabricators . | . . . . Repair Stations . | . . . . Recycling Units . | . . . . Scanalyzers . | . . . . Garrison Access . | . . . . Data Cores Recovered . | . . . . Used . | . . . . Hacking Detections 3 | . . 2 1 Full Trace Events 2 | . . 1 1 Feedback Events . | . . . . Feedback Blocked . | . . . . Robot Schematics Acquired . | . . . . Robots Built . | . . . . Authchips . | . . . . Time . | . . . . Total Robot Build Rating . | . . . . Part Schematics Acquired 1 | . . 1 . Parts Built . | . . . . Authchips . | . . . . Time . | . . . . Total Part Build Rating . | . . . . Part Studies Acquired . | . . . . Parts Repaired 2 | . . 2 . Time 77 | . . 77 . Parts Recycled . | . . . . Recycled Matter . | . . . . Retrieved Matter . | . . . . Retrieved Components . | . . . . Parts Scanalyzed 1 | . . 1 . Part Schematics Acquired 1 | . . 1 . Parts Damaged . | . . . . Bothacking | -11 -10 -9 -8 ------------ Run | Yrd Mat Mat Mat Used RIF Installer . | . . . . Robots Hacked . | . . . . Non-combat . | . . . . Combat . | . . . . Robot Hacks Applied . | . . . . Relay Couplers Released . | . . . . Fabnet Peak Effective % . | . . . . Robots Rewired . | . . . . Allies Hacked . | . . . . Hacks Repelled . | . . . . Allies | -11 -10 -9 -8 -------- Run | Yrd Mat Mat Mat Total Allies . | . . . . Largest Group . | . . . . Highest-Rated Group . | . . . . Highest-Rated Ally . | . . . . Total Orders . | . . . . Ally Attacks . | . . . . Total Damage . | . . . . Kills . | . . . . Allies Corrupted . | . . . . Allies Melted . | . . . . Intel | -11 -10 -9 -8 ------- Run | Yrd Mat Mat Mat Active Infowar (turns) 618 | . . 419 199 Optics 618 | . . 419 199 Robot Analysis Total . | . . . . Derelict Logs Recovered . | . . . . Drone Launches . | . . . . Drone Recoveries . | . . . . Exploration | -11 -10 -9 -8 ------------- Run | Yrd Mat Mat Mat Turns Passed 1625 | 78 283 1065 199 Spaces Moved 907 | 57 183 554 113 Core 39 | 16 . . 23 Treads . | . . . . Legs 728 | 41 183 414 90 Wheels . | . . . . Hover 140 | . . 140 . Flight . | . . . . Fastest Speed 50 | 50 120 120 50 Average Speed 137 | 100 120 149 119 Slowest Speed 200 | 120 120 190 200 Overloaded Moves . | . . . . Propulsion Burnouts . | . . . . Robots Hopped . | . . . . Potential Cave-ins . | . . . . Cave-ins Triggered . | . . . . Exploration Rate (%) 23 | 3 41 37 12 Regions Visited 3 Branch Regions . Pre-discovered Areas . | . . . . Known Exits Taken . | . . . . Unknown Exits Taken 3 | 1 1 1 . Scrap Searched . | . . . . Spaces Dug . | . . . . Terrain Destroyed 47 | . 16 31 . Melee . | . . . . Projectile . | . . . . AOE 47 | . 16 31 . Terrain Rammed . | . . . . Walls Destroyed . | . . . . Machines Disabled . | . . . . Actions | -11 -10 -9 -8 --------- Run | Yrd Mat Mat Mat Total 1153 | 78 214 706 155 Wait 45 | 7 6 18 14 Move 904 | 56 182 553 113 Hop . | . . . . Pick Up 39 | 7 7 20 5 Fast Attach 7 | . . 6 1 Attach 17 | 6 1 6 4 Detach 1 | . . 1 . Swap 20 | 1 2 17 . Drop 21 | 1 . 18 2 Fire 85 | . 16 65 4 Melee 13 | . . 1 12 Ram . | . . . . Kick 1 | . . 1 . Crush . | . . . . Escape Stasis . | . . . . Rewire . | . . . . Trap . | . . . . Miscellaneous . | . . . . Route ------- -11/Scrapyard -10/Materials (discovered 3 exits: *Mat / [*Min x2]) -9/Materials (discovered 2 exits: *Mat / [*Min]) -8/Materials History --------- Turn | Location | Event 13 | -11/Scrapyard | Discovered new exit (range 15) 79 | -11/Scrapyard | Entered Materials 97 | -10/Materials | Discovered new exit (range 13) 155 | -10/Materials | Discovered new exit (range 13) 317 | -10/Materials | Build established: Mutant 317 | -10/Materials | Discovered new exit (range 3) 362 | -10/Materials | Entered another Materials area 362 | -9/Materials | Evolved 2 slots: Utility x2 799 | -9/Materials | Lost 4 parts (1p1n1u1w) 1029 | -9/Materials | Repaired Core Shielding 1080 | -9/Materials | Repaired Adv. Beam Cannon? 1086 | -9/Materials | Discovered new exit (range 12) 1292 | -9/Materials | Discovered new exit (range 3) 1325 | -9/Materials | Core integrity fell below 50% 1427 | -9/Materials | Entered another Materials area 1427 | -8/Materials | Evolved 2 slots: Propulsion x2 1557 | -8/Materials | Core integrity fell below 50% 1607 | -8/Materials | Lost 8 parts (1p4n1u2w) 1611 | -8/Materials | Core integrity fell below 20% 1626 | -8/Materials | Destroyed by G-47 Trooper with Particle Gun Last Messages --------------- 01570_ Identified Cld. Ion Engine. 01576_ G-47 Trooper knocked back. 01576_ Sml. Storage Unit destroyed. 01579_ Terminal disabled. 01586_ Sneak attack on O-16 Technician. 01586_ Destroyed Hover Unit. 01586_ O-16 Technician system corrupted by crushing effect. 01587_ O-16 Technician system terminally corrupted. 01587_ Datajack fried. 01587_ Lgt. Ion Engine fried. 01606_ Destroyed Imp. Heat Sink. 01606_ G-47 Trooper system corrupted by crushing effect. 01609_ G-47 Trooper suffers critical hit (Smash). 01609_ G-47 Trooper destroyed. 01616_ G-50 Soldier destroyed. 01617_ Critical hit (Burn: +37). 01626_ Destroyed Imp. Heat Sink. 01626_ G-47 Trooper system corrupted by crushing effect. 01626_ G-47 Trooper suffers critical hit (Burn). 01626_ G-47 Trooper destroyed. Map ----- +----------------------------------------------------+ | ????????????????????????????????? | | ????????????????????????????????? | | ????????????????????????????????? | | ????????????????????????????????? | | ????????????????????????????????? | | ????????????????????????????????? | | ????????????????????????????????? | | ????????????????????????????????? | | ????????????????????????????????? | | ????????????????????????????????? | | ????????????????????????????????? | | ????????????????????????????????? | | ????????????????????????????????? | | ????????????????????????????????? | | ????????????????????????????????? | | ????????????????????????????????? | | ????????????????????????????????? | | ????????????????????????????????? | | ????????????????????????????????? | | ????????????????????????????????? | | ????????????????????????????????? | | ?#########??????????????????????? | | ?# """ #??????????????????????? | | ?# "T" g #??????????????????????? | | ?# *% # ???????????????????? | | ?#/ =mg@# ???????????????????? | | ???###/### #??????????????????? | | ?????#%#?# #??????????????????? | | ?????# #?# #??????????????????? | | ?????# #?# #??????????????????? | | ?????# #?# #??????????????????? | | ?????#%#?# #??????????????????? | | ???### ### #??????????????????? | | ???# # ^ #??????????????????? | | ???# # ######+###### ?????? | | ???# # ?????? | | ???# # ] ?????? | | ???# [] # ????? | | ???### ### ??????? | | ?????# #?# #?????????? | | ?????# ### !/ !| ! #??????????? | | ?????# ^ !| #??????????? | | ?????###### // !! #??????????? | | ??????????# +??????????? | | ?###??????# #??????????? | | ? ????# " " #??????????? | | ?? ??# "Y" #??????????? | | ???"""""" # """ = #??????????? | | ???"""""" + #??????????? | | ???"""""" # #??????????? | +----------------------------------------------------+ Best States ------------- Heat Dissipation 38 Energy Generation 14 Energy Capacity 280 Matter Stores 185 Matter Capacity 300 Sight Range 18 Terrain Scan Density 10 Additional Mass Support 9 Core Shielding 20 Weapon Shielding 33 Evasion (%) 55 Offensive Hacking 20 Item Schematics ----------------- Adv. Beam Cannon | -9/Materials | Scanalyzed Robot Schematics ------------------ None Fabricated ------------ Nothing Repaired ---------- Adv. Beam Cannon | 61% | -9/Materials Studied --------- None Alien Tech Used ----------------- None Achievements -------------- For Emergencies Only GoHome() Safety First Challenges ------------ None Game ------ Seed PointyReactivePlatform Manual? 0 Play Time 00:24:50 Cumulative 4.3 hours Start 2026.02.22 @ 23:00:49 End 2026.02.22 @ 23:38:48 Sessions 1 Manual Loads 0 Difficulty Rogue Special Mode None Game No. 10 Rogue 10 Adventurer 0 Explorer 0 Win Type - Total 0 Types 0/0/0/0/0/0/0/0/0/0 Lore% 1 Gallery% 10 Achievement% 7 Wizard Run 0 Options --------- Layout 0 ASCII 0 Keyboard 0 Movement Mouse Keybinds 0 Fullscreen 2 Font 24/Smallcaps Map View 76x50 Zoom Use 0% Tactical HUD 1 Map Filters NONE Filters NONE Steam 1 RUN: d8efc5f1-b142-4332-bcf1-ee33d3ef4124